Cogmind - Beta 13 @@@ ROGUE MODE // 2024.04.13 @ 20:31:51 Player: SovietPaperclip Result: Self-destructed Performance ------------- Evolutions (1) 500 Regions Visited (3) 600 Robots Destroyed (46) 230 Value Destroyed (978) 978 Prototype IDs (0) 0 Alien Tech Used (0) 0 Bonus (66) 66 TOTAL SCORE: 2374 Bonus ------- High Alert Combat Kills 66 Cogmind --------- Core Integrity 155/400 Matter 83/300 Energy 100/100 System Corruption 2% Temperature Cool (0) Movement Core (1350) Ox26 Location -9/Materials Parts ------- > --- POWER (1) -------- (None) > --- PROPULSION (3) --- (None) > --- UTILITY (3) ------ Huge Storage Unit > --- WEAPON (2) ------- (None) > --- INVENTORY (25) --- Ion Engine Light Nuclear Core Light Angular Momentum Engine Light Treads Light Treads Improved Heat Sink Improved Heat Sink Improved Heat Sink ECM Suite Light Assault Rifle Peak State ------------ > --- POWER ------------ Ion Engine > --- PROPULSION ------- Light Treads Light Treads > --- UTILITY ---------- Huge Storage Unit Light Armor Plating Light Armor Plating > --- WEAPON ----------- Beamcaster Assault Rifle > --- INVENTORY -------- Ion Engine Light Nuclear Core Light Angular Momentum Engine Improved Heat Sink Improved Heat Sink Improved Heat Sink ECM Suite Light Armor Plating Light Assault Rifle Light Assault Rifle Grenade Launcher [Rating: 14] Favorites ----------- Power Ion Engine Engine Ion Engine Propulsion Light Treads Treads Light Treads Wheel Wheel Utility Huge Storage Unit Storage Huge Storage Unit Protection Light Armor Plating Weapon Assault Rifle Energy Gun Beamcaster Ballistic Gun Assault Rifle Launcher Rocket Launcher Build | -11 -10 -10 -9 ------- Run | Yrd Mat Min Mat Slots Evolved 2 | . . . 2 Power . | . . . . Propulsion 1 | . . . 1 Utility 1 | . . . 1 Weapon . | . . . . Parts Attached 19 | 6 5 . 8 Power 1 | 1 . . . Engine 1 | 1 . . . Core . | . . . . Reactor . | . . . . Propulsion 3 | 2 . . 1 Treads 2 | 2 . . . Leg . | . . . . Wheel 1 | . . . 1 Hover . | . . . . Flight . | . . . . Utility 7 | 1 3 . 3 Device . | . . . . Storage 2 | 1 1 . . Processor . | . . . . Hackware . | . . . . Protection 5 | . 2 . 3 Artifact . | . . . . Weapon 8 | 2 2 . 4 Energy Gun 1 | . . . 1 Energy Cannon . | . . . . Ballistic Gun 4 | 2 1 . 1 Ballistic Cannon . | . . . . Launcher 3 | . 1 . 2 Special Weapon . | . . . . Impact Weapon . | . . . . Slashing Weapon . | . . . . Piercing Weapon . | . . . . Special Melee Weapon . | . . . . Unidentified Prototypes . | . . . . Parts Lost 10 | . . . 10 Power 1 | . . . 1 Propulsion 2 | . . . 2 Utility 4 | . . . 4 Weapon 3 | . . . 3 Highest Loss Streak 4 | . . . 4 To Critical Strikes . | . . . . Average Slot Usage (%) 91 | . 97 100 69 Engine 13 | . 14 14 9 Treads 24 | . 28 28 11 Storage 13 | . 14 14 11 Protection 12 | . 11 14 16 Ballistic Gun 25 | . 27 28 14 Naked Turns . | . . . . Heaviest Build 96 | 13 91 91 96 Greatest Support 40 | 40 40 40 40 Greatest Overweight (x) 30 | . 2 2 30 Average Overweight (x) 2 | . 1 2 6 Largest Inventory Capacity 25 | 8 25 25 25 Average Capacity 24 | 6 24 25 25 Most Carried 13 | 5 10 13 13 Average Carried 7 | 2 6 11 10 Final Capacity 25 | 8 25 25 25 Final Carried 13 | 2 10 13 10 Class Distribution -------------------- 100% | Mutant Dominant Class ---------------- Mutant | -10/Materials Mutant | -10/Mines Mutant | -9/Materials Resources | -11 -10 -10 -9 ----------- Run | Yrd Mat Min Mat Matter Collected 766 | 213 225 76 252 Remotely . | . . . . Salvage Created 1292 | . 360 30 902 Parts 88 | . 22 2 64 Haulers Intercepted 2 | . 1 . 1 Recyclers Shooed 3 | . . . 3 Parts Field Recycled . | . . . . Retrieved Matter . | . . . . Parts Self-Destructed . | . . . . Prevented . | . . . . Kills | -11 -10 -10 -9 ------- Run | Yrd Mat Min Mat Combat Hostiles Destroyed 30 | . 9 2 19 Guns 14 | . 7 2 5 AOE 16 | . 2 . 14 Classes Destroyed 9 | . 5 . 4 Worker 5 | . 1 . 4 Builder 1 | . 1 . . Hauler 2 | . 1 . 1 Recycler 4 | . . . 4 Operator 1 | . . . 1 Watcher 3 | . . . 3 Swarmer 11 | . 3 2 6 Grunt 15 | . 6 . 9 Sentry 4 | . . . 4 Best Kill Streak 24 | . 4 1 24 Combat Bots Only 14 | . 3 1 14 Max Kills in Single Turn 5 | . 3 1 5 Gunslinging . | . . . . Exploded 3 | . 2 . 3 Melee . | . . . . Uniques/NPCs Destroyed . | . . . . Combat | -11 -10 -10 -9 -------- Run | Yrd Mat Min Mat Hostile Shots Fired 136 | . 41 19 76 Missed 43 | . 15 6 22 Damage Taken 1448 | . 329 104 1015 Core 296 | . 44 7 245 Absorbed by Shields . | . . . . Core Remaining (%) 89 | 100 . 79 . Volleys Fired 115 | . 52 8 55 Largest 2 | . 2 2 2 Hottest 95 | . 50 40 95 Shots Fired 205 | . 105 15 85 Gun 188 | . 104 15 69 Cannon . | . . . . Launcher 17 | . 1 . 16 Special . | . . . . Kinetic 179 | . 104 15 60 Thermal 9 | . . . 9 Explosive 17 | . 1 . 16 Electromagnetic . | . . . . Robot Hit Streak 10 | . 10 4 9 Robot Miss Streak 4 | . 4 3 4 Penetration Max . | . . . . Secondary Targets 3 | . 2 1 . Max Gunslinging Chain 1 | . 1 1 . Shots Hit Robots 123 | . 62 5 56 Core Hits 74 | . 23 3 48 Critical Kills 1 | . 1 . . Critical Parts Destroyed . | . . . . Critical Strikes 3 | . 1 . 2 Burn 1 | . . . 1 Destroy 2 | . 1 . 1 Melee Attacks . | . . . . Impact . | . . . . Slashing . | . . . . Piercing . | . . . . Sneak Attacks . | . . . . Combat Hostiles . | . . . . Follow-up Attacks . | . . . . Damage Inflicted 2849 | . 767 78 2004 Guns 1391 | . 681 78 632 Cannons . | . . . . Explosions 1458 | . 86 . 1372 Melee . | . . . . Ramming . | . . . . Kinetic 1219 | . 681 78 460 Thermal 245 | . . . 245 Explosive 1350 | . 86 . 1264 Electromagnetic 35 | . . . 35 Impact . | . . . . Slashing . | . . . . Piercing . | . . . . Highest Corruption 2 | . 2 2 . Average Corruption 2 | . 2 2 . Corruption Purged . | . . . . Corruption Blocked . | . . . . Effects 21 | . 18 3 . Message Errors 6 | . 6 . . Matter Fused 5 | . 5 . . Heat Flow Errors 2 | . 2 . . Energy Discharges 4 | . 3 1 . Parts Rejected 1 | . 1 . . Data Loss (major) 1 | . . 1 . Misfires 1 | . 1 . . Weapon Failures 1 | . . 1 . Overload Shots . | . . . . Overflow Damage 67 | . . . 67 Projectiles . | . . . . Explosions 67 | . . . 67 Melee . | . . . . Knockbacks . | . . . . Impact . | . . . . Kinetic . | . . . . Secondary . | . . . . Self-Inflicted Damage 175 | . 13 . 162 Shots 5 | . 1 . 4 Rammed . | . . . . Targets Rammed . | . . . . Kicked . | . . . . Crushed . | . . . . Highest Temperature 434 | . 243 12 434 Average Temperature 77 | . 27 5 160 Received Heat Transfer 408 | . 153 . 255 Effects 7 | . . . 7 Shutdowns 3 | . . . 3 Energy Bleed 1 | . . . 1 Matter Decay 1 | . . . 1 Short Circuit 2 | . . . 2 Siege Activations . | . . . . Robots Corrupted . | . . . . Combat Hostiles . | . . . . Parts Fried . | . . . . Impact Corruptions . | . . . . Robots Melted . | . . . . Combat Hostiles . | . . . . Parts Melted 1 | . . . 1 Heat Transferred 420 | . . . 420 Parts Sabotaged . | . . . . Parts Stolen . | . . . . Parts Stripped . | . . . . Power Chain Reactions 1 | . . . 1 Alert | -11 -10 -10 -9 ------- Run | Yrd Mat Min Mat Peak Influence 578 | . 165 50 578 Initial 19 | . . . 19 Average 71 | . 55 30 152 Maximum Alert Level 2 | . . . 2 Low Security (%) 97 | 100 100 100 84 Level 1 1 | . . . 7 Level 2 1 | . . . 7 Level 3 . | . . . . Level 4 . | . . . . Level 5 . | . . . . High Security . | . . . . Max Security . | . . . . Squads Dispatched 4 | . 1 . 3 Investigation 3 | . 1 . 2 Extermination . | . . . . Reinforcement 1 | . . . 1 Assault . | . . . . Garrison . | . . . . Intercept . | . . . . Searches Triggered . | . . . . Construction Impeded 1 | . . . 1 Haulers Reinforced . | . . . . Active Scanning Responses . | . . . . Cargo Convoy Interrupts . | . . . . Stealth | -11 -10 -10 -9 --------- Run | Yrd Mat Min Mat Distress Signals 3 | . 2 . 1 Communications Jammed . | . . . . Distress Signals . | . . . . Times Spotted 59 | . 22 3 34 Peak Tracking Total 9 | . 5 3 9 Tactical Retreats 3 | . 2 . 1 Traps | -11 -10 -10 -9 ------- Run | Yrd Mat Min Mat Traps Triggered 2 | . 1 . 1 Indirectly 1 | . . . 1 Trap Hack Attempts . | . . . . Triggered . | . . . . Disarmed . | . . . . Reprogrammed . | . . . . Reused . | . . . . Traps Extracted . | . . . . Installed . | . . . . Triggered . | . . . . Machines | -11 -10 -10 -9 ---------- Run | Yrd Mat Min Mat Machines Disabled 5 | . . . 5 Max in Single Turn 2 | . . . 2 Machines Repaired . | . . . . Machines Dismantled . | . . . . Machines Sabotaged . | . . . . Overloaded Fab Kills . | . . . . Hacking | -11 -10 -10 -9 --------- Run | Yrd Mat Min Mat Machines Accessed 5 | . 4 . 1 Terminals 5 | . 4 . 1 Fabricators . | . . . . Repair Stations . | . . . . Recycling Units . | . . . . Scanalyzers . | . . . . Garrison Access . | . . . . Total Hacks 12 | . 10 . 2 Successful 3 | . 3 . . Failed 9 | . 7 . 2 Catastrophic 4 | . 3 . 1 Database Lockouts . | . . . . Manual 8 | . 6 . 2 Terminals 12 | . 10 . 2 Fabricators . | . . . . Repair Stations . | . . . . Recycling Units . | . . . . Scanalyzers . | . . . . Garrison Access . | . . . . Terminal Hacks 3 | . 3 . . Unreport Threat 1 | . 1 . . Hauler Manifests 1 | . 1 . . Zone Layout 1 | . 1 . . Fabricator Hacks . | . . . . Repair Station Hacks . | . . . . Recycling Unit Hacks . | . . . . Scanalyzer . | . . . . Garrison Access Hacks . | . . . . Unauthorized Hacks . | . . . . Terminals . | . . . . Fabricators . | . . . . Repair Stations . | . . . . Recycling Units . | . . . . Scanalyzers . | . . . . Garrison Access . | . . . . Data Cores Recovered 1 | . . . 1 Used 1 | . . . 1 Hacking Detections 5 | . 4 . 1 Full Trace Events 4 | . 3 . 1 Feedback Events . | . . . . Feedback Blocked . | . . . . Robot Schematics Acquired . | . . . . Robots Built . | . . . . Authchips . | . . . . Time . | . . . . Total Robot Build Rating . | . . . . Part Schematics Acquired . | . . . . Parts Built . | . . . . Authchips . | . . . . Time . | . . . . Total Part Build Rating . | . . . . Parts Repaired . | . . . . Time . | . . . . Parts Recycled . | . . . . Recycled Matter . | . . . . Retrieved Matter . | . . . . Retrieved Components . | . . . . Parts Scanalyzed . | . . . . Part Schematics Acquired . | . . . . Parts Damaged . | . . . . Bothacking | -11 -10 -10 -9 ------------ Run | Yrd Mat Min Mat Used RIF Installer . | . . . . Robots Hacked . | . . . . Non-combat . | . . . . Combat . | . . . . Robot Hacks Applied . | . . . . Relay Couplers Released . | . . . . Fabnet Peak Effective % . | . . . . Robots Rewired . | . . . . Allies Hacked . | . . . . Hacks Repelled . | . . . . Allies | -11 -10 -10 -9 -------- Run | Yrd Mat Min Mat Total Allies . | . . . . Largest Group . | . . . . Highest-Rated Group . | . . . . Highest-Rated Ally . | . . . . Total Orders . | . . . . Ally Attacks . | . . . . Total Damage . | . . . . Kills . | . . . . Allies Corrupted . | . . . . Allies Melted . | . . . . Intel | -11 -10 -10 -9 ------- Run | Yrd Mat Min Mat Robot Analysis Total . | . . . . Derelict Logs Recovered . | . . . . Drone Launches . | . . . . Drone Recoveries . | . . . . Exploration | -11 -10 -10 -9 ------------- Run | Yrd Mat Min Mat Turns Passed 2274 | 80 1658 107 429 Spaces Moved 636 | 50 470 26 90 Core 14 | 12 . . 2 Treads 576 | 38 470 26 42 Legs . | . . . . Wheels 46 | . . . 46 Hover . | . . . . Flight . | . . . . Fastest Speed 50 | 50 160 320 200 Average Speed 298 | 133 316 320 291 Slowest Speed 1550 | 160 320 320 1550 Overloaded Moves . | . . . . Propulsion Burnouts . | . . . . Robots Hopped . | . . . . Cave-ins Triggered 1 | . . . 1 Exploration Rate (%) 30 | 5 86 13 17 Regions Visited 3 Branch Regions 1 Pre-discovered Areas . | . . . . Known Exits Taken . | . . . . Unknown Exits Taken 3 | 1 1 1 . Scrap Searched . | . . . . Spaces Dug . | . . . . Terrain Destroyed 124 | . 4 . 120 Melee . | . . . . Projectile . | . . . . AOE 124 | . 4 . 120 Terrain Rammed . | . . . . Walls Destroyed . | . . . . Machines Disabled . | . . . . Actions | -11 -10 -10 -9 --------- Run | Yrd Mat Min Mat Total 824 | 63 547 37 177 Wait 21 | . 7 1 13 Move 633 | 49 469 25 90 Hop . | . . . . Pick Up 29 | 8 12 3 6 Fast Attach . | . . . . Attach 15 | 6 2 . 7 Detach . | . . . . Swap 4 | . 3 . 1 Drop 7 | . 2 . 5 Fire 115 | . 52 8 55 Melee . | . . . . Ram . | . . . . Kick . | . . . . Crush . | . . . . Escape Stasis . | . . . . Rewire . | . . . . Trap . | . . . . Miscellaneous . | . . . . Route ------- -11/Scrapyard -10/Materials (discovered 3 exits: *Mat x2 / [*Min]) -10/Mines -9/Materials History --------- Turn | Location | Event 7 | -11/Scrapyard | Discovered new exit (range 15) 81 | -11/Scrapyard | Entered Materials 301 | -10/Materials | Build established: Mutant 379 | -10/Materials | Discovered new exit (range 8) 1287 | -10/Materials | Discovered new exit (range 13) 1691 | -10/Materials | Discovered new exit (range 15) 1739 | -10/Materials | Entered Mines 1762 | -10/Mines | Discovered new exit (range 9) 1846 | -10/Mines | Entered Materials 1846 | -9/Materials | Evolved 2 slots: Propulsion x1, Utility x1 2254 | -9/Materials | Lost 4 parts (1p1u2w) 2275 | -9/Materials | Crushed by falling debris 2275 | -9/Materials | Core integrity fell below 50% 2275 | -9/Materials | Self-destructed Last Messages --------------- 02258_ Y-45 Defender destroyed. 02259_ U-05 Engineer lays Concrete. 02261_ The unstable cave ceiling collapses. 02263_ Lgt. Armor Plating destroyed. 02263_ U-05 Engineer builds a Wall. 02266_ Y-45 Defender destroyed. 02267_ The unstable cave ceiling collapses. 02269_ K-01 Serf collects debris. 02271_ C-30 ARC bursts open, deploying its payload. 02271_ S-10 Pest unfolds itself. 02273_ K-01 Serf collects debris. 02273_ G-34 Mercenary destroyed. 02275_ The unstable cave ceiling collapses. 02275_ Crushed by falling debris. 02275_ Rocket Launcher destroyed. 02275_ System corrupted by crushing effect (+1). 02275_ Wheel destroyed. 02275_ System corrupted by crushing effect (+1). 02275_ Lgt. Armor Plating destroyed. Map ----- +----------------------------------------------------+ | ??????????????????????????? #??? ?# # | | ???????????????????????????# #???####??# # | | ???????????????????????????# #?????????# ####### | | ???????????????????????????# #?????????# | | ?????????????? ???????????# #?????????# ####### | | ?????????????" ######### ########### #?????? | | ?????????????" + #?????? | | ????????????????????### %#############+#####??? | | ??????????????????????# # !!! # #??? | | ??????????????????????# + !!! # """ " #??? | | ??????????????????????# # !!! # """ T #??? | | ??????????????????##### # # """ " #??? | | ?????????????????? #% # #??? | | ??????????????? ?? ## # #??? | | ???????????????" """ ## # !! #??? | | ??????????????"" """ ## # !! #??? | | ?????????????""" """ ## ###########??? | | ???????????? ## ##???????????? | | ???????????? #???????????? | | ???????????? ##+######????????? | | ??????????? * #????????? | | ?????????? = = ==% [ #????????? | | ?????????? % + ?????? | | ?????????? %g % [ # #+## # ?? | | ?????????? k! ##%[ # # #? ? | | ?????????? = !! @ [[ # """ #? #??? ?? | | ??????????# ! # !! ! """ #? #?????##?? | | ??????????? %?????# !! [ # """ #?? #????????? | | ?????????????????# %##% #???#????????? | | ?????????????????# *%# """ #????????????? | | ?????????????????# = """ #????????????? | | ???????????????? s # """ +????????????? | | ??????????????? ;# #????????????? | | ????????????? # # ### #????????????? | | ????????????? k *% t! s ?? #????????????? | | ?????????????? %[ s%??? #????????????? | | ?????????????? !!= =#???#?###????????????? | | ???????????????? ==#????????????????????? | | ??????????????????? ===#????????????????????? | | ????????????????????? #????????????????????? | | ??????????????????????? ###?????????????????????? | | ?????????????????????????????????????????????????? | | ?????????????????????????????????????????????????? | | ?????????????????????????????????????????????????? | | ?????????????????????????????????????????????????? | | ?????????????????????????????????????????????????? | | ?????????????????????????????????????????????????? | | ?????????????????????????????????????????????????? | | ?????????????????????????????????????????????????? | | ?????????????????????????????????????????????????? | +----------------------------------------------------+ Best States ------------- Heat Dissipation 28 Energy Generation 10 Energy Capacity 250 Matter Stores 300 Matter Capacity 300 Sight Range 16 Terrain Scan Density 10 Armor Coverage 300 Evasion (%) 50 Recoil Reduction 2 Item Schematics ----------------- None Robot Schematics ------------------ None Fabricated ------------ Nothing Alien Tech Used ----------------- None Achievements -------------- None Challenges ------------ None Game ------ Seed AssemblyThermicStick Manual? 0 Play Time 00:09:24 Cumulative 86.4 hours Start 2024.04.13 @ 20:20:31 End 2024.04.13 @ 20:31:51 Sessions 3 Manual Loads 0 Difficulty Rogue Special Mode None Game No. 102 Rogue 102 Adventurer 0 Explorer 0 Win Type - Total 1 Types 1/0/0/0/0/0/0/0/0 Lore% 42 Gallery% 47 Achievement% 44 Wizard Run 0 Options --------- Layout 1 ASCII 0 Keyboard 0 Movement Mouse Keybinds 0 Fullscreen 2 Font 32/Smallcaps Map View 50x40 Zoom Use 0% Tactical HUD 1 Map Filters NONE Filters NONE Steam 1 RUN: 6a2f26ce-b9b4-468b-bc53-bbad4bb207df